Cogmind - Beta 9.6 --- EXPLORER MODE // 2020.04.17 @ 01:31:20 Player: hemo Result: Destroyed by D-53 Grenadier with Mini Grenade Launcher Performance ------------- Evolutions (0) 0 Regions Visited (2) 400 Robots Destroyed (26) 130 Value Destroyed (244) 244 Prototype IDs (6) 120 Alien Tech Used (0) 0 Bonus (-146) -146 TOTAL SCORE: 748 Bonus ------- Friendly Fire -146 Cogmind --------- Core Integrity 0/250 Matter 256/300 Energy 124/125 System Corruption 1% Temperature Cool (0) Movement Rolling (80) Location -10/Mines Parts ------- > --- POWER (1) -------- Light Ion Engine > --- PROPULSION (2) --- Wheel > --- UTILITY (3) ------ Improved Terrain Scanner Terrain Scan Processor > --- WEAPON (2) ------- (None) > --- INVENTORY (4) ---- Light Ion Engine Wheel Signal Interpreter Peak State ------------ > --- POWER ------------ Light Angular Momentum Engine > --- PROPULSION ------- Light Treads Carbon-fiber Leg > --- UTILITY ---------- High-capacity Storage Unit Improved Terrain Scanner Terrain Scan Processor > --- WEAPON ----------- Particle Gun Assault Rifle > --- INVENTORY -------- Light Ion Engine Light Ion Engine Light Ion Engine Wheel Large Storage Unit Structural Scanner Sensor Array Signal Interpreter Transport Network Coupler Light Assault Rifle Grenade Launcher Maul [Rating: 18] Favorites ----------- Power Light Ion Engine Engine Light Ion Engine Propulsion Wheel Treads Light Treads Leg Carbon-fiber Leg Wheel Wheel Utility Improved Terrain Scanner Device Improved Terrain Scanner Storage High-capacity Storage Unit Processor Terrain Scan Processor Weapon Assault Rifle Energy Gun Particle Gun Ballistic Gun Assault Rifle Launcher Grenade Launcher Impact Weapon Maul Build | -11 -10 -10 ------- Run | Scr Mat Min Slots Evolved 1 | . 1 . Power . | . . . Propulsion . | . . . Utility 1 | . 1 . Weapon . | . . . Parts Attached 21 | 8 7 6 Power 3 | 1 . 2 Engine 3 | 1 . 2 Core . | . . . Reactor . | . . . Propulsion 5 | 2 1 2 Treads 1 | . 1 . Leg 1 | . . 1 Wheel 3 | 2 . 1 Hover . | . . . Flight . | . . . Utility 7 | 3 3 1 Device 3 | 2 . 1 Storage 2 | . 2 . Processor 2 | 1 1 . Hackware . | . . . Protection . | . . . Artifact . | . . . Weapon 6 | 2 3 1 Energy Gun 1 | . 1 . Energy Cannon . | . . . Ballistic Gun 3 | 2 1 . Ballistic Cannon . | . . . Launcher 1 | . . 1 Special Weapon . | . . . Impact Weapon 1 | . 1 . Slashing Weapon . | . . . Piercing Weapon . | . . . Special Melee Weapon . | . . . Unidentified Prototypes . | . . . Parts Lost 6 | . . 6 Power . | . . . Propulsion 2 | . . 2 Utility 1 | . . 1 Weapon 3 | . . 3 Highest Loss Streak 6 | . . 6 Average Slot Usage (%) 91 | . 98 62 Engine 11 | . 12 8 Treads 7 | . 8 5 Wheel 13 | . 16 4 Device 11 | . 12 9 Storage 9 | . 10 5 Processor 12 | . 12 12 Energy Gun 4 | . 4 4 Ballistic Gun 17 | . 20 4 Naked Turns . | . . . Heaviest Build 47 | 7 42 47 Greatest Support 20 | 20 20 20 Greatest Overweight (x) 3 | . 2 3 Average Overweight (x) . | . . . Largest Inventory Capacity 12 | 4 12 12 Average Capacity 9 | 4 10 7 Most Carried 12 | 2 11 12 Average Carried 6 | . 7 7 Final Capacity 12 | 4 12 4 Final Carried 11 | 2 11 3 Class Distribution -------------------- 100% | Hacker-Mutant Dominant Class ---------------- Hacker-Mutant | -10/Materials Hacker-Mutant | -10/Mines Resources | -11 -10 -10 ----------- Run | Scr Mat Min Matter Collected 617 | 328 177 112 Remotely . | . . . Salvage Created 715 | 151 492 72 Parts 57 | 13 42 2 Haulers Intercepted 2 | . 2 . Recyclers Shooed 3 | 1 2 . Parts Field Recycled . | . . . Retrieved Matter . | . . . Parts Self-Destructed . | . . . Prevented . | . . . Kills | -11 -10 -10 ------- Run | Scr Mat Min Combat Hostiles Destroyed 12 | . 10 2 Guns 10 | . 10 . AOE 2 | . . 2 Classes Destroyed 9 | 2 6 1 Worker 2 | . 2 . Builder 1 | . 1 . Tunneler 4 | 4 . . Hauler 2 | . 2 . Recycler 2 | 1 1 . Watcher 2 | . 2 . Swarmer 8 | . 8 . Grunt 2 | . 2 . Assembled 2 | . . 2 Thug 1 | . . 1 Best Kill Streak 4 | 3 4 2 Combat Bots Only 2 | . 2 2 Max Kills in Single Turn 2 | 1 2 1 Gunslinging 1 | . 1 . Exploded 1 | . . 1 Melee . | . . . Uniques/NPCs Destroyed . | . . . Combat | -11 -10 -10 -------- Run | Scr Mat Min Damage Taken 845 | . 151 694 Core 279 | . 40 239 Absorbed by Shields . | . . . Core Remaining (%) 100 | 100 . . Volleys Fired 61 | 12 42 7 Largest 2 | 2 2 2 Hottest 85 | 40 85 85 Shots Fired 118 | 24 84 10 Gun 114 | 24 84 6 Cannon . | . . . Launcher 4 | . . 4 Special . | . . . Kinetic 105 | 24 78 3 Thermal 9 | . 6 3 Explosive 4 | . . 4 Electromagnetic . | . . . Robot Hit Streak 16 | 10 16 10 Robot Miss Streak 3 | 1 3 2 Penetration Max . | . . . Secondary Targets 3 | . 3 . Max Gunslinging Chain 1 | . 1 . Shots Hit Robots 90 | 20 64 6 Core Hits 41 | 8 27 6 Critical Hits 1 | 1 . . Critical Kills . | . . . Critical Parts Destroyed 1 | 1 . . Melee Attacks 1 | . 1 . Impact 1 | . 1 . Slashing . | . . . Piercing . | . . . Sneak Attacks . | . . . Combat Hostiles . | . . . Follow-up Attacks . | . . . Damage Inflicted 1088 | 211 732 145 Guns 1015 | 211 732 72 Cannons . | . . . Explosions 73 | . . 73 Melee . | . . . Ramming . | . . . Kinetic 886 | 211 645 30 Thermal 129 | . 87 42 Explosive 73 | . . 73 Electromagnetic . | . . . Impact . | . . . Slashing . | . . . Piercing . | . . . Highest Corruption 1 | . 1 1 Average Corruption 1 | . 1 1 Corruption Purged . | . . . Effects 1 | . 1 . Energy Discharges 1 | . 1 . Overload Shots . | . . . Overflow Damage . | . . . Projectiles . | . . . Explosions . | . . . Melee . | . . . Knockbacks . | . . . Impact . | . . . Kinetic . | . . . Secondary . | . . . Self-Inflicted Damage 19 | . . 19 Shots 2 | . . 2 Rammed . | . . . Targets Rammed . | . . . Kicked . | . . . Crushed . | . . . Highest Temperature 96 | . 96 48 Average Temperature 30 | . 33 23 Received Heat Transfer 42 | . 42 . Siege Activations . | . . . Robots Corrupted . | . . . Combat Hostiles . | . . . Parts Fried . | . . . Impact Corruptions . | . . . Robots Melted . | . . . Combat Hostiles . | . . . Parts Melted 1 | . 1 . Heat Transferred 296 | . 185 111 Parts Sabotaged . | . . . Parts Stolen . | . . . Parts Stripped . | . . . Power Chain Reactions . | . . . Missiles Intercepted . | . . . Alert | -11 -10 -10 ------- Run | Scr Mat Min Peak Influence 238 | 25 238 15 Average Influence 95 | 13 127 4 Maximum Alert Level 1 | . 1 . Low Security (%) 83 | 100 78 100 Level 1 16 | . 21 . Level 2 . | . . . Level 3 . | . . . Level 4 . | . . . Level 5 . | . . . High Security . | . . . Max Security . | . . . Squads Dispatched . | . . . Investigation . | . . . Extermination . | . . . Reinforcement . | . . . Assault . | . . . Garrison . | . . . Intercept . | . . . Construction Impeded . | . . . Haulers Reinforced . | . . . Stealth | -11 -10 -10 --------- Run | Scr Mat Min Distress Signals 1 | . 1 . Communications Jammed . | . . . Distress Signals . | . . . Times Spotted 30 | . 19 11 Peak Tracking Total 7 | . 3 7 Tactical Retreats 2 | . 1 1 Traps | -11 -10 -10 ------- Run | Scr Mat Min Traps Triggered 1 | . 1 . Indirectly . | . . . Trap Hack Attempts . | . . . Triggered . | . . . Disarmed . | . . . Reprogrammed . | . . . Reused . | . . . Traps Extracted . | . . . Installed . | . . . Triggered . | . . . Machines | -11 -10 -10 ---------- Run | Scr Mat Min Machines Disabled . | . . . Max in Single Turn . | . . . Machines Sabotaged . | . . . Garrisons Compromised . | . . . Overloaded Fab Kills . | . . . Fab Network Shutdowns . | . . . Hacking | -11 -10 -10 --------- Run | Scr Mat Min Machines Accessed 10 | . 10 . Terminals 8 | . 8 . Fabricators . | . . . Repair Stations . | . . . Recycling Units 2 | . 2 . Scanalyzers . | . . . Garrison Access . | . . . Total Hacks 33 | . 33 . Successful 28 | . 28 . Failed 5 | . 5 . Catastrophic . | . . . Database Lockouts . | . . . Manual 33 | . 33 . Terminals 30 | . 30 . Fabricators . | . . . Repair Stations . | . . . Recycling Units 3 | . 3 . Scanalyzers . | . . . Garrison Access . | . . . Terminal Hacks 19 | . 19 . Part Schematic 2 | . 2 . Robot Schematic 2 | . 2 . Robot Analysis 11 | . 11 . Prototype ID Bank 4 | . 4 . Fabricator Hacks . | . . . Repair Station Hacks . | . . . Recycling Unit Hacks 2 | . 2 . Retrieve Components 2 | . 2 . Scanalyzer . | . . . Garrison Access Hacks . | . . . Unauthorized Hacks 7 | . 7 . Terminals 7 | . 7 . Botnet 7 | . 7 . Fabricators . | . . . Repair Stations . | . . . Recycling Units . | . . . Scanalyzers . | . . . Garrison Access . | . . . Data Cores Recovered . | . . . Used . | . . . Hacking Detections 9 | . 9 . Full Trace Events . | . . . Feedback Events . | . . . Feedback Blocked . | . . . Robot Schematics Acquired 2 | . 2 . Robots Built . | . . . Matter . | . . . Time . | . . . Total Robot Build Rating . | . . . Part Schematics Acquired 2 | . 2 . Parts Built . | . . . Matter . | . . . Time . | . . . Total Part Build Rating . | . . . Parts Repaired . | . . . Time . | . . . Parts Recycled . | . . . Recycled Matter . | . . . Retrieved Matter . | . . . Retrieved Components 19 | . 19 . Parts Scanalyzed . | . . . Part Schematics Acquired . | . . . Parts Damaged . | . . . Bothacking | -11 -10 -10 ------------ Run | Scr Mat Min Used RIF Installer . | . . . Robots Hacked . | . . . Non-combat . | . . . Combat . | . . . Robot Hacks Applied . | . . . Relay Couplers Released . | . . . Robots Rewired . | . . . Allies Hacked . | . . . Hacks Repelled . | . . . Allies | -11 -10 -10 -------- Run | Scr Mat Min Total Allies . | . . . Largest Group . | . . . Highest-Rated Group . | . . . Highest-Rated Ally . | . . . Total Orders . | . . . Ally Attacks . | . . . Total Damage . | . . . Kills . | . . . Allies Corrupted . | . . . Allies Melted . | . . . Intel | -11 -10 -10 ------- Run | Scr Mat Min Robot Analysis Total 11 | . 11 . Derelict Logs Recovered . | . . . Drone Launches . | . . . Drone Recoveries . | . . . Exploration | -11 -10 -10 ------------- Run | Scr Mat Min Turns Passed 1178 | 111 861 206 Spaces Moved 780 | 73 535 172 Core 71 | 16 . 55 Treads 264 | . 261 3 Legs 38 | . . 38 Wheels 407 | 57 274 76 Hover . | . . . Flight . | . . . Fastest Speed 50 | 50 80 50 Average Speed 120 | 73 133 99 Slowest Speed 210 | 80 200 210 Overloaded Moves . | . . . Propulsion Burnouts . | . . . Robots Hopped . | . . . Cave-ins Triggered . | . . . Exploration Rate (%) 50 | 4 88 60 Regions Visited 2 Branch Regions 1 Pre-discovered Areas . | . . . Known Exits Taken 2 | 1 1 . Unknown Exits Taken . | . . . Scrap Searched . | . . . Spaces Dug 1 | . 1 . Terrain Destroyed 26 | . 1 25 Melee 1 | . 1 . Projectile . | . . . AOE 25 | . . 25 Actions | -11 -10 -10 --------- Run | Scr Mat Min Total 905 | 105 603 197 Wait 24 | 10 6 8 Move 778 | 72 534 172 Hop . | . . . Pick Up 11 | 2 9 . Fast Attach 14 | 7 3 4 Attach 1 | . . 1 Detach 2 | . 1 1 Swap 6 | 1 4 1 Drop 7 | 1 3 3 Fire 61 | 12 42 7 Melee 1 | . 1 . Ram . | . . . Kick . | . . . Crush . | . . . Escape Stasis . | . . . Rewire . | . . . Trap . | . . . Miscellaneous . | . . . Route ------- -11/Scrapyard -10/Materials (discovered 4 exits: *Mat x3 / *Min) -10/Mines (discovered 1 exit: *Mat) History --------- Turn | Location | Event 8 | -11/Scrapyard | Identified exit to Materials 8 | -11/Scrapyard | Discovered exit to Materials (range 15) 112 | -11/Scrapyard | Entered Materials 112 | -10/Materials | Evolved 1 slot: Utility x1 180 | -10/Materials | Identified exit to Mines 180 | -10/Materials | Discovered exit to Mines (range 16) 303 | -10/Materials | Build established: Hacker-Mutant 309 | -10/Materials | Identified exit to Materials 309 | -10/Materials | Discovered exit to Materials (range 4) 370 | -10/Materials | Discovered exit to Materials (range 16) 657 | -10/Materials | Discovered exit to Materials (range 15) 973 | -10/Materials | Entered Mines 1023 | -10/Mines | Assembled infested the area 1096 | -10/Mines | Core integrity fell below 50% 1117 | -10/Mines | Discovered exit to Materials (range 11) 1123 | -10/Mines | Lost 6 parts (2n1u3w) 1172 | -10/Mines | Core integrity fell below 20% 1179 | -10/Mines | Destroyed by D-53 Grenadier with Mini Grenade Launcher Last Messages --------------- 01069_ Dropped Hcp. Storage Unit. 01070_ The unstable cave ceiling collapses. 01075_ as-37269 destroyed. 01082_ The unstable cave ceiling collapses. 01087_ as-96200 destroyed. 01092_ Grenade Launcher destroyed. 01094_ R-06 Scavenger destroyed. 01099_ as-05759 destroyed. 01105_ The unstable cave ceiling collapses. 01114_ Acquired Wheel. 01116_ Acquired 16 matter. 01117_ EXIT=FOUND: MATERIALS 01117_ Acquired Imp. Terrain Scanner. 01120_ Acquired Lgt. Ion Engine. 01124_ Acquired 15 matter. 01127_ as-14531 destroyed. 01130_ K-01 Serf collects debris. 01130_ as-96349 sneak attacks. 01133_ K-01 Serf destroyed. 01156_ K-01 Serf collects debris. Map ----- +----------------------------------------------------+ | | | | | ???????????????????????????#??##??????#?? | | ????????????????????#?????#??#??##??????? | | ??????????????#?????###??????#?????##??## | | ????????????????#??## ###????#??##??#??? | | ???????????#???????# #########??#????? | | ????????????????##?# ## #####???? | | ???????????#????#### ##??? | | ????????#?????#??#?# ##?? | | ?????????????#??#??## ### ##? | | ????????????#??????### ###### ## | | ???????????#???????#?# ##???# # | | ??????????#?#???????## #????# # | | ???????????#??????#### ###### ## # | | ???????????#?#?#??##?# ##?### | | ?????????????######### #?##?# | | ?????????# #????? | | ???????#????????###d## ##?##?# | | ????????#??#????### ## ### #?#???? | | ????#??????????## d# ## #?????? | | ????????#???? ?# # ### #?#???# | | ?????????#??#??# ##?# ##?##?? | | ????????## # ### ### #?????? | | ????????# ## #????#? | | ???????# @ #???##? | | ??????# ##### ##????? | | ?????# ????## ########?#???? | | ?????????????## ##???#????????? | | ??????????????# t##?#???#??????? | | ????#????????### #??#????#?#???? | | ????????????#??# # ## t#??###???###??? | | ??#????????????# ###### %##?##?? #???? | | ?????#?????????# ###?## % ##### #??? | | ??????????????## #?### %% ! *%[ ??# | | ??#?????#??????# ### %%%*%????? | | ????????????#??# < % ## ?????? ?? | | ???????????#???# ?? ????? ? | | ???????#??#????###### ##???????# " | | ??????????????##????? %% #?????????#"%" | | ????????????########### ????#????# " | | ????????#??# =% #??##?????# | | ???????????# ! % ###??#?????#??? | | ???????????# # ####### ###?#########?#?? | | ????????????????#?????# ##??## ##??? | | ??????????? ? ????????# ##### #?#? | | ??????????#???????????# ##?# | | ????????????????????#?######## # #??# | | ?????????????????#??#????????# ##??# | | ?????????????#??????????????## #??## | +----------------------------------------------------+ Best States ------------- Heat Dissipation 25 Energy Generation 18 Energy Capacity 150 Matter Stores 300 Matter Capacity 300 Sight Range 16 Terrain Scan Range 16 Terrain Scan Density 85 Resistance: KI 35 Resistance: TH 35 Resistance: EX 35 Resistance: EM 35 Resistance: I 35 Resistance: S 35 Resistance: P 35 Evasion (%) 50 Recoil Reduction 1 Offensive Hacking 20 Item Schematics ----------------- Lgt. Ion Engine | -10/Materials | Hacked Hcp. Storage Unit | -10/Materials | Hacked Robot Schematics ------------------ G-34 Mercenary | -10/Materials | Hacked O-16 Technician | -10/Materials | Hacked Fabricated ------------ Nothing Alien Tech Used ----------------- None Achievements -------------- None Challenges ------------ None Game ------ Seed FieldNodeSplitter Manual? 1 Play Time 00:22:19 Cumulative 138.1 hours Start 2020.04.17 @ 01:09:22 End 2020.04.17 @ 01:31:20 Sessions 1 Manual Loads 0 Difficulty Explorer Special Mode None Game No. 28 Rogue 1 Adventurer 3 Explorer 24 Win Type - Total 13 Types 13/0/0/0/0/0/0 Lore% 67 Gallery% 79 Achievement% 75 Wizard Run 0 Options --------- ASCII 0 Keyboard 1 Movement Vi Keybinds 0 Fullscreen 2 Font 24/Terminus Map View 76x50 Tactical HUD 1 Map Filters NONE Filters NONE Steam 1 RUN: f7ac28a8-9bd9-498b-98b0-cd4b7b5c1494